fUST/lending_fUST_20250416
["ID","MTS","AMOUNT","RATE_DAILY","PERIOD"]
[358116704,1744744257520,-472.56,0.000318,31]
[358116705,1744744257530,-472.56,0.000318,31]
[358116706,1744744257540,-472.56,0.000318,31]
[358116707,1744744257551,-472.56,0.000318,31]
[358116708,1744744257561,-472.56,0.000318,31]
[358116709,1744744257570,-472.56,0.000318,31]
[358116710,1744744257580,-472.56,0.000318,31]
[358116711,1744744257592,-472.56,0.000318,31]
[358116712,1744744257601,-472.56,0.000318,31]
[358116713,1744744257611,-472.56,0.000318,31]
[358116714,1744744257621,-472.56,0.000318,31]
[358116715,1744744257632,-472.56,0.000318,31]
[358116716,1744744257642,-472.56,0.000318,31]
[358116717,1744744257652,-472.56,0.000318,31]
[358116718,1744744257662,-472.56,0.000318,31]
[358116719,1744744257672,-472.56,0.000318,31]
[358116720,1744744257685,-472.56,0.000318,31]
[358116721,1744744257694,-472.56,0.000318,31]
[358116722,1744744257705,-472.56,0.000318,31]
[358116723,1744744257717,-472.56,0.000318,31]
[358116724,1744744257727,-160.0,0.00031836,2]
[358116725,1744744257738,-5000.0,0.00031871,36]
[358116726,1744744257748,-1000.0,0.00031918,6]
[358116727,1744744257757,-160.0,0.00031955,4]
[358116728,1744744257767,-200.0,0.00032,120]
[358116729,1744744257777,-501.64765138,0.00032016,5]
[358116730,1744744257787,-1000.0,0.00032037,5]
[358116731,1744744257797,-506.22165267,0.00032037,5]
[358116732,1744744257807,-823.0,0.00032047,3]
[358116733,1744744257817,-1000.0,0.00032055,6]
[358116734,1744744257826,-1000.0,0.00032192,6]
[358116735,1744744257837,-500.0,0.00032192,7]
[358116736,1744744257846,-1000.0,0.00032218,5]
[358116737,1744744257856,-150.52519756,0.00032277,5]
[358116738,1744744257865,-500.0,0.00032309,5]
[358116739,1744744257875,-159.59979301,0.00032329,7]
[358116740,1744744257884,-1000.0,0.00032329,6]
[358116741,1744744257894,-500.0,0.00032434,7]
[358116742,1744744257903,-1000.0,0.00032466,6]
[358116743,1744744257913,-4023.14086526,0.00032486,10]
[358116744,1744744257923,-1015.63979251,0.000325,2]
[358116745,1744744257932,-242.25373173,0.00032598,5]
[358116746,1744744257942,-1000.0,0.00032603,6]
[358116747,1744744257952,-162.0,0.00032622,2]
[358116748,1744744257962,-160.0,0.00032693,5]
[358116749,1744744257972,-150.1,0.00032712,2]
[358116750,1744744257981,-1000.0,0.0003274,6]
[358116751,1744744257991,-150.1,0.00032849,2]
[358116752,1744744258001,-500.0,0.00032877,2]
[358116753,1744744258011,-500.0,0.00032877,2]
[358116754,1744744258021,-1000.0,0.00032877,6]
[358116755,1744744258030,-3000.0,0.00032877,4]
[358116756,1744744258040,-532.13721076,0.00032877,5]
[358116757,1744744258049,-3897.11,0.000329,30]
[358116758,1744744258059,-2593.94,0.000329,30]
[358116759,1744744258068,-206572.71,0.000329,30]
[358116760,1744744258078,-150.1,0.00032986,2]
[358116761,1744744258092,-199.0354419,0.00033,30]
[358116762,1744744258102,-420.08908737,0.00033,30]
[358116763,1744744258111,-160.0,0.00033,30]
[358116764,1744744258121,-312.5017938,0.00033,30]
[358116765,1744744258131,-242.0,0.00033,2]
[358116766,1744744258141,-242.0,0.00033,2]
[358116767,1744744258151,-160.0,0.00033,30]
[358116768,1744744258161,-2000.0,0.00033,4]
[358116769,1744744258170,-250.0,0.00033,14]
[358116770,1744744258178,-250.0,0.00033,14]
[358116771,1744744258190,-403.5,0.00033,14]
[358116772,1744744258201,-1000.0,0.00033014,6]
[358116773,1744744258214,-150.1,0.00033123,2]
[358116774,1744744258224,-1000.0,0.00033151,6]
[358116775,1744744258234,-160.0,0.00033206,2]
[358116776,1744744258244,-4023.14086526,0.00033245,11]
[358116777,1744744258255,-294.54739908,0.0003326,2]
[358116778,1744744258264,-1000.0,0.00033288,6]
[358116779,1744744258274,-1000.0,0.00033425,6]
[358116780,1744744258286,-160.0,0.00033431,6]
[358116781,1744744258296,-1000.0,0.00033562,6]
[358116782,1744744258306,-150.64514957,0.00033673,5]
[358116783,1744744258315,-500.0,0.00033673,7]
[358116784,1744744258324,-1000.0,0.00033699,6]
[358116785,1744744258334,-206572.71,0.000337,30]
[358116786,1744744258343,-1000.0,0.00033836,6]
[358116787,1744744258353,-1695.10277769,0.00033874,2]
[358116788,1744744258362,-500.0,0.00033924,5]
[358116789,1744744258371,-216.39466392,0.00033973,21]
[358116790,1744744258381,-1000.0,0.00033973,6]
[358116791,1744744258390,-3500.0,0.00033973,4]
[358116792,1744744258399,-201.0,0.0003399,37]
[358116793,1744744258408,-204.0,0.00034,120]
[358116794,1744744258417,-1000.0,0.00034,120]
[358116795,1744744258426,-4023.14086526,0.00034003,11]
[358116796,1744744258437,-1000.0,0.0003411,6]
[358116797,1744744258446,-160.0,0.0003417,7]
[358116798,1744744258455,-1000.0,0.00034247,6]
[358116799,1744744258464,-196.0,0.00034247,6]
[358116800,1744744258474,-1152.0,0.00034255,2]
[358116801,1744744258483,-500.0,0.00034385,7]
[358116802,1744744258494,-2000.0,0.000345,4]
[358116803,1744744258503,-250.0,0.000345,14]
[358116804,1744744258513,-160.0,0.00034576,2]
[358116805,1744744258522,-2593.94,0.000346,30]
[358116806,1744744258532,-500.0,0.00034691,7]
[358116807,1744744258541,-4023.14086526,0.00034762,12]
[358116808,1744744258550,-500.0,0.0003479,7]
[358116809,1744744258560,-206572.71,0.000348,30]
[358116810,1744744258569,-191.23960976,0.00034811,7]
[358116811,1744744258579,-1152.0,0.0003488,3]
[358116812,1744744258588,-3897.11,0.000349,30]
[358116813,1744744258597,-204.0,0.000349,30]
[358116814,1744744258607,-160.0,0.00034908,8]
[358116815,1744744258616,-201.0,0.00035,120]
[358116816,1744744258625,-177.00346913,0.00035,30]
[358116817,1744744258635,-202.26,0.00035,14]
[358116818,1744744258645,-944.27,0.00035,120]
[358116819,1744744258655,-509.614,0.00035,120]
[358116820,1744744258664,-800.0,0.00035,60]
[358116821,1744744258674,-10576.14934431,0.00035,2]
[358116822,1744744258683,-134055.3855953,0.00035,2]
[358116823,1744744258693,-4000.0,0.00035068,4]
[358116824,1744744258702,-500.0,0.00035378,7]
[358116825,1744744258711,-4023.14086526,0.00035521,12]
[358116826,1744744258721,-500.0,0.00035616,7]
[358116827,1744744258730,-336.58649368,0.00035616,7]
[358116828,1744744258739,-1000.0,0.00035616,6]
[358116829,1744744258749,-526.68991091,0.0003562,5]
[358116830,1744744258759,-160.0,0.00035646,9]
[358116831,1744744258768,-206572.71,0.000357,30]
[358116832,1744744258778,-500.0,0.00035887,7]
[358116833,1744744258788,-500.0,0.00035912,7]
[358116834,1744744258798,-160.0,0.00035946,2]
[358116835,1744744258808,-2000.0,0.00036,4]
[358116836,1744744258818,-242.0,0.00036,2]
[358116837,1744744258828,-242.0,0.00036,2]
[358116838,1744744258837,-242.0,0.00036,2]
[358116839,1744744258848,-204.0,0.000361,30]
[358116840,1744744258858,-500.0,0.00036111,7]
[358116841,1744744258868,-2526.93612901,0.00036164,4]
[358116842,1744744258878,-181.85394381,0.000362,120]
[358116843,1744744258887,-4023.14086526,0.00036279,13]
[358116844,1744744258898,-160.0,0.00036385,10]
[358116845,1744744258908,-501.72104897,0.00036393,7]
[358116846,1744744258918,-3897.11,0.000364,30]
[358116847,1744744258927,-275.0,0.000364,120]
[358116848,1744744258937,-2593.94,0.000364,30]
[358116849,1744744258946,-472.56,0.000364,31]
[358116850,1744744258954,-472.56,0.000364,31]
[358116851,1744744258962,-472.56,0.000364,31]
[358116852,1744744258971,-472.56,0.000364,31]
[358116853,1744744258979,-472.56,0.000364,31]
[358116854,1744744258988,-472.56,0.000364,31]
[358116855,1744744258997,-472.56,0.000364,31]
[358116856,1744744259008,-472.56,0.000364,31]
[358116857,1744744259017,-472.56,0.000364,31]
[358116858,1744744259026,-472.56,0.000364,31]
[358116859,1744744259035,-472.56,0.000364,31]
[358116860,1744744259043,-472.56,0.000364,31]
[358116861,1744744259050,-472.56,0.000364,31]
[358116862,1744744259058,-472.56,0.000364,31]
[358116863,1744744259067,-472.56,0.000364,31]
[358116864,1744744259075,-472.56,0.000364,31]
[358116865,1744744259083,-472.56,0.000364,31]
[358116866,1744744259092,-472.56,0.000364,31]
[358116867,1744744259100,-472.56,0.000364,31]
[358116868,1744744259109,-472.56,0.000364,31]
[358116869,1744744259118,-472.56,0.000364,31]
[358116870,1744744259127,-472.56,0.000364,31]
[358116871,1744744259136,-472.56,0.000364,31]
[358116872,1744744259145,-472.56,0.000364,31]
[358116873,1744744259154,-206572.71,0.000365,30]
[358116874,1744744259161,-500.0,0.00036617,7]
[358116875,1744744259169,-217204.28681249,0.00036898,120]
[358116876,1744744259177,-283.70089144,0.000369,2]
[358116877,1744744259185,-283.70089138,0.000369,2]
[358116878,1744744259195,-283.70089138,0.000369,2]
[358116879,1744744259209,-283.70089138,0.000369,2]
[358116880,1744744259218,-283.70089138,0.000369,2]
[358116881,1744744259228,-283.70089138,0.000369,2]
[358116882,1744744259238,-283.70089138,0.000369,2]
[358116883,1744744259249,-283.70089138,0.000369,2]
[358116884,1744744259259,-283.70089138,0.000369,2]
[358116885,1744744259268,-283.70089138,0.000369,2]
[358116886,1744744259280,-1695.10277769,0.00036914,2]
[358116887,1744744259290,-2000.0,0.00036986,120]
[358116888,1744744259300,-306.30605287,0.00037,120]
[358116889,1744744259310,-500.0,0.0003703,7]
[358116890,1744744259320,-4023.14086526,0.00037038,13]
[358116891,1744744259330,-1613.0,0.00037115,2]
[358116892,1744744259339,-500.0,0.00037123,7]
[358116893,1744744259349,-160.0,0.00037123,11]
[358116894,1744744259360,-2000.0,0.0003726,120]
[358116895,1744744259370,-204.0,0.0003731,30]
[358116896,1744744259380,-160.0,0.00037316,2]
[358116897,1744744259390,-206572.71,0.000374,30]
[358116898,1744744259400,-2000.0,0.000375,4]
[358116899,1744744259411,-2135.07675413,0.00037534,120]
[358116900,1744744259422,-4023.14086526,0.00037797,14]
[358116901,1744744259432,-500.0,0.00037851,7]
[358116902,1744744259443,-160.0,0.00037862,12]
[358116903,1744744259453,-163.47837642,0.00037862,5]
[358116904,1744744259618,-1613.0,0.00037964,3]
[358116905,1744744259628,-1000.0,0.00038,120]
[358116906,1744744259638,-1422.0,0.00038,60]
[358116907,1744744259648,-300.0,0.00038,14]
[358116908,1744744259657,-500.0,0.0003812,7]
[358116909,1744744259666,-200.0,0.00038356,5]
[358116910,1744744259676,-333.62495251,0.00038356,5]
[358116911,1744744259686,-3897.11,0.000384,30]
[358116912,1744744259695,-172.689325,0.00038449,2]
[358116913,1744744259704,-1000.0,0.000385,2]
[358116914,1744744259714,-254.1,0.000385,120]
[358116915,1744744259723,-204.0,0.0003851,30]
[358116916,1744744259733,-4023.14086526,0.00038555,14]
[358116917,1744744259743,-2700.0,0.00038599,60]
[358116918,1744744259752,-2593.94,0.000386,30]
[358116919,1744744259762,-160.0,0.00038686,2]
[358116920,1744744259771,-1008.51,0.000388,60]
[358116921,1744744259781,-500.0,0.00038948,7]
[358116922,1744744259790,-2446296.348448,0.0003899,30]
[358116923,1744744259800,-32365.17115641,0.00039,5]
[358116924,1744744259809,-300.0,0.00039,14]
[358116925,1744744259819,-6470.0,0.00039,60]
[358116926,1744744259828,-203.0,0.00039,10]
[358116927,1744744259837,-500.94072707,0.00039,120]
[358116928,1744744259848,-2000.0,0.00039,4]
[358116929,1744744259856,-242.0,0.00039,2]
[358116930,1744744259866,-242.0,0.00039,2]
[358116931,1744744259876,-2700.0,0.00039147,60]
[358116932,1744744259885,-4023.14086526,0.00039314,15]
[358116933,1744744259893,-1217.54709712,0.000394,21]
[358116934,1744744259902,-5063.6,0.000396,7]
[358116935,1744744259911,-949.48803428,0.00039688,7]
[358116936,1744744259921,-2700.0,0.00039695,60]
[358116937,1744744259930,-204.0,0.0003971,30]
[358116938,1744744259940,-500.0,0.00039853,7]
[358116939,1744744259949,-500.0,0.00039941,7]
[358116940,1744744259958,-1695.10277769,0.00039953,2]
[358116941,1744744259967,-451.13198252,0.00039999,15]
[358116942,1744744259976,-431.62532787,0.00039999,31]
[358116943,1744744259986,-420.64657733,0.00039999,31]
[358116944,1744744259995,-579.72672937,0.00039999,31]
[358116945,1744744260006,-500.0,0.00039999,31]
[358116946,1744744260017,-500.0,0.00039999,31]
[358116947,1744744260027,-500.0,0.00039999,31]
[358116948,1744744260036,-500.0,0.00039999,31]
[358116949,1744744260047,-500.0,0.00039999,31]
[358116950,1744744260057,-500.0,0.00039999,31]
[358116951,1744744260067,-259.7936436,0.00039999,31]
[358116952,1744744260077,-452.03515192,0.00039999,31]
[358116953,1744744260087,-500.0,0.00039999,31]
[358116954,1744744260097,-500.0,0.00039999,31]
[358116955,1744744260107,-500.0,0.00039999,31]
[358116956,1744744260116,-500.0,0.00039999,31]
[358116957,1744744260126,-500.0,0.00039999,31]
[358116958,1744744260137,-500.0,0.00039999,31]
[358116959,1744744260148,-500.0,0.00039999,31]
[358116960,1744744260157,-500.0,0.00039999,31]
[358116961,1744744260167,-500.0,0.00039999,31]
[358116962,1744744260176,-500.0,0.00039999,31]
[358116963,1744744260186,-500.0,0.00039999,31]
[358116964,1744744260196,-500.0,0.00039999,31]
[358116965,1744744260209,-500.0,0.00039999,31]
[358116966,1744744260218,-500.0,0.00039999,31]
[358116967,1744744260227,-500.0,0.00039999,31]
[358116968,1744744260237,-500.0,0.00039999,31]
[358116969,1744744260249,-500.0,0.00039999,31]
[358116970,1744744260259,-647.07392795,0.00039999,31]
[358116971,1744744260269,-500.0,0.00039999,31]
[358116972,1744744260278,-500.0,0.00039999,31]
[358116973,1744744260288,-500.0,0.00039999,31]
[358116974,1744744260298,-500.0,0.00039999,31]
[358116975,1744744260308,-500.0,0.00039999,2]
[358116976,1744744260317,-544.89723232,0.00039999,2]
[358116977,1744744260328,-901.01017775,0.0004,2]
[358116978,1744744260338,-244.21446431,0.0004,120]
[358116979,1744744260348,-183.83656962,0.0004,120]
[358116980,1744744260358,-171.34949724,0.0004,7]
[358116981,1744744260368,-411.33739644,0.0004,30]
[358116982,1744744260378,-672.49481453,0.0004,120]
[358116983,1744744260386,-1934.22968247,0.0004,60]
[358116984,1744744260394,-4503.86925911,0.0004,120]
[358116985,1744744260403,-200.0,0.0004,120]
[358116986,1744744260412,-172.71425139,0.0004,120]
[358116987,1744744260422,-200.0,0.0004,30]
[358116988,1744744260431,-35535.60411066,0.0004,120]
[358116989,1744744260441,-153.6348744,0.0004,2]
[358116990,1744744260451,-100000.0,0.0004,2]
[358116991,1744744260461,-200.0,0.0004,14]
[358116992,1744744260471,-1383.88263183,0.0004,120]
[358116993,1744744260481,-237968.80360228,0.0004,5]
[358116994,1744744260491,-420.08908737,0.0004,10]
[358116995,1744744260500,-160.0,0.0004,10]
[358116996,1744744260510,-312.5017938,0.0004,10]
[358116997,1744744260520,-160.0,0.0004,10]
[358116998,1744744260530,-160.0,0.00040056,2]
[358116999,1744744260539,-4023.14086526,0.00040072,15]
[358117000,1744744260549,-2593.94,0.000402,30]
[358117001,1744744260565,-2258.0,0.00040214,5]
[358117002,1744744260582,-2700.0,0.00040243,60]
[358117003,1744744260594,-3897.11,0.000404,30]
[358117004,1744744260604,-500.0,0.00040439,30]
[358117005,1744744260613,-1500.0,0.00040471,5]
[358117006,1744744260621,-1500.0,0.00040471,5]
[358117007,1744744260630,-484.66707543,0.00040471,5]
[358117008,1744744260639,-1500.0,0.00040471,5]
[358117009,1744744260649,-1500.0,0.00040471,5]
[358117010,1744744260659,-1500.0,0.00040471,5]
[358117011,1744744260680,-503.10402249,0.00040471,5]
[358117012,1744744260691,-1500.0,0.00040471,2]
[358117013,1744744260701,-1500.0,0.00040471,5]
[358117014,1744744260713,-1500.0,0.00040471,5]
[358117015,1744744260726,-1500.0,0.00040471,5]
[358117016,1744744260736,-1000.0,0.00040471,5]
[358117017,1744744260747,-500.0,0.00040471,5]
[358117018,1744744260758,-557.06434477,0.00040471,5]
[358117019,1744744260773,-2000.0,0.000405,8]
[358117020,1744744260783,-4023.14086526,0.00040831,16]
[358117021,1744744260795,-472.56,0.000409,31]
[358117022,1744744260813,-472.56,0.000409,31]
[358117023,1744744260823,-472.56,0.000409,31]
[358117024,1744744260834,-472.56,0.000409,31]
[358117025,1744744260845,-472.56,0.000409,31]
[358117026,1744744260855,-472.56,0.000409,31]
[358117027,1744744260866,-472.56,0.000409,31]
[358117028,1744744260876,-472.56,0.000409,31]
[358117029,1744744260887,-472.56,0.000409,31]
[358117030,1744744260897,-472.56,0.000409,31]
[358117031,1744744260907,-472.56,0.000409,31]
[358117032,1744744260917,-472.56,0.000409,31]
[358117033,1744744260927,-472.56,0.000409,31]
[358117034,1744744260940,-472.56,0.000409,31]
[358117035,1744744260951,-472.56,0.000409,31]
[358117036,1744744260961,-472.56,0.000409,31]
[358117037,1744744260973,-472.56,0.000409,31]
[358117038,1744744260983,-472.56,0.000409,31]
[358117039,1744744260993,-472.56,0.000409,31]
[358117040,1744744261005,-472.56,0.000409,31]
[358117041,1744744261015,-472.56,0.000409,31]
[358117042,1744744261026,-472.56,0.000409,31]
[358117043,1744744261035,-472.56,0.000409,31]
[358117044,1744744261045,-472.56,0.000409,31]
[358117045,1744744261055,-204.0,0.0004091,30]
[358117046,1744744261066,-2001.426438,0.00041,14]
[358117047,1744744261076,-180.0360072,0.00041067,24]
[358117048,1744744261086,-500.0,0.00041096,31]
[358117049,1744744261096,-500.0,0.00041096,31]
[358117050,1744744261106,-2258.0,0.0004132,5]
[358117051,1744744261117,-2700.0,0.00041339,60]
[358117052,1744744261127,-160.0,0.00041426,120]
[358117053,1744744261137,-2593.94,0.000415,30]
[358117054,1744744261147,-1510.8728159,0.00041571,10]
[358117055,1744744261157,-4023.14086526,0.0004159,16]
[358117056,1744744261167,-1475.57172373,0.00041672,10]
[358117057,1744744261178,-3897.11,0.000417,30]
[358117058,1744744261189,-150.5,0.0004197,120]
[358117059,1744744261202,-150.5,0.0004197,30]
[358117060,1744744261213,-295.55,0.0004197,120]
[358117061,1744744261224,-150.5,0.0004197,30]
[358117062,1744744261234,-1160.0,0.0004197,120]
[358117063,1744744261245,-1160.0,0.0004197,120]
[358117064,1744744261255,-150.5,0.0004198,120]
[358117065,1744744261264,-150.5,0.0004198,30]
[358117066,1744744261274,-150.5,0.0004198,120]
[358117067,1744744261289,-150.5,0.0004198,30]
[358117068,1744744261299,-1160.0,0.0004198,120]
[358117069,1744744261310,-1160.0,0.0004198,120]
[358117070,1744744261325,-150.5,0.0004199,120]
[358117071,1744744261335,-150.5,0.0004199,30]
[358117072,1744744261346,-150.5,0.0004199,120]
[358117073,1744744261356,-150.5,0.0004199,30]
[358117074,1744744261367,-1160.0,0.0004199,120]
[358117075,1744744261376,-1160.0,0.0004199,120]
[358117076,1744744261386,-500.0,0.00041997,30]
[358117077,1744744261396,-2500.0,0.00042,7]
[358117078,1744744261407,-300.0,0.00042,120]
[358117079,1744744261420,-1000.0,0.00042,120]
[358117080,1744744261432,-206572.71,0.00042,30]
[358117081,1744744261443,-1219.16,0.00042,60]
[358117082,1744744261453,-1549.41817438,0.00042,30]
[358117083,1744744261463,-2000.0,0.00042,8]
[358117084,1744744261475,-242.0,0.00042,2]
[358117085,1744744261486,-1142.10334551,0.00042055,10]
[358117086,1744744261498,-204.0,0.0004211,30]
[358117087,1744744261508,-1500.0,0.00042236,10]
[358117088,1744744261519,-499.04847587,0.00042268,30]
[358117089,1744744261529,-4023.14086526,0.00042348,17]
[358117090,1744744261539,-606.54451738,0.00042362,30]
[358117091,1744744261550,-2700.0,0.00042435,60]
[358117092,1744744261560,-199.67407891,0.00042466,10]
[358117093,1744744261570,-4866.52,0.000425,120]
[358117094,1744744261581,-5390.68,0.000425,120]
[358117095,1744744261592,-2593.94,0.000427,30]
[358117096,1744744261603,-857.92695604,0.00042747,38]
[358117097,1744744261613,-179.80984083,0.00042795,120]
[358117098,1744744261623,-181.85394381,0.000429,120]
[358117099,1744744261633,-61515.62877802,0.0004298,30]
[358117100,1744744261644,-1695.10277769,0.00042993,28]
[358117101,1744744261654,-82980.05077686,0.00043,7]
[358117102,1744744261664,-82980.05077686,0.00043,7]
[358117103,1744744261674,-266654.40615277,0.00043,7]
[358117104,1744744261683,-266654.40615277,0.00043,7]
[358117105,1744744261696,-575.52152554,0.00043,120]
[358117106,1744744261706,-7745.33132457,0.00043,7]
[358117107,1744744261716,-7745.33132457,0.00043,7]
[358117108,1744744261727,-500.0,0.00043,14]
[358117109,1744744261736,-3897.11,0.00043,30]
[358117110,1744744261747,-232.67044146,0.00043,7]
[358117111,1744744261757,-232.67044146,0.00043,7]
[358117112,1744744261767,-2000.0,0.00043,120]
[358117113,1744744261777,-156.14729779,0.00043,120]
[358117114,1744744261788,-2100.0,0.00043,30]
[358117115,1744744261798,-3870.0,0.00043,120]
[358117116,1744744261808,-77165.77981346,0.00043,7]
[358117117,1744744261818,-77165.77981346,0.00043,7]
[358117118,1744744261828,-203.99929311,0.00043,7]
[358117119,1744744261838,-203.99929311,0.00043,7]
[358117120,1744744261848,-1070.88510756,0.00043,7]
[358117121,1744744261858,-1070.88510756,0.00043,7]
[358117122,1744744261868,-1370.38162805,0.00043,7]
[358117123,1744744261878,-1370.38162805,0.00043,7]
[358117124,1744744261888,-200.0,0.00043,30]
[358117125,1744744261899,-2159.86944502,0.00043,31]
[358117126,1744744261909,-2000.0,0.00043,90]
[358117127,1744744261919,-500.0,0.00043014,2]
[358117128,1744744261931,-4023.14086526,0.00043107,17]
[358117129,1744744261942,-204.0,0.0004331,30]
[358117130,1744744261952,-200.0,0.00043431,14]
[358117131,1744744261963,-2000.0,0.000435,8]
[358117132,1744744261972,-2700.0,0.00043531,60]
[358117133,1744744261982,-3162.0,0.00043571,5]
[358117134,1744744261992,-766.23799874,0.000438,120]
[358117135,1744744262002,-200.0,0.00043808,14]
[358117136,1744744262013,-203.14243374,0.00043808,14]
[358117137,1744744262023,-1500.0,0.00043835,30]
[358117138,1744744262032,-554.26825355,0.00043835,2]
[358117139,1744744262042,-500.0,0.00043835,2]
[358117140,1744744262052,-500.0,0.00043835,2]
[358117141,1744744262061,-500.0,0.00043835,2]
[358117142,1744744262071,-500.0,0.00043835,2]
[358117143,1744744262081,-500.0,0.00043835,2]
[358117144,1744744262090,-500.0,0.00043835,2]
[358117145,1744744262100,-500.0,0.00043835,2]
[358117146,1744744262109,-500.0,0.00043835,2]
[358117147,1744744262119,-500.0,0.00043835,2]
[358117148,1744744262129,-470.731281,0.00043835,2]
[358117149,1744744262139,-1308.12,0.00043835,120]
[358117150,1744744262149,-1308.12,0.00043835,120]
[358117151,1744744262160,-1308.12,0.00043835,120]
[358117152,1744744262170,-1308.12,0.00043835,120]
[358117153,1744744262180,-1308.12,0.00043835,120]
[358117154,1744744262192,-1308.12,0.00043835,120]
[358117155,1744744262204,-1308.12,0.00043835,120]
[358117156,1744744262215,-1308.12,0.00043835,120]
[358117157,1744744262226,-1308.12,0.00043835,120]
[358117158,1744744262236,-1308.12,0.00043835,120]
[358117159,1744744262247,-1308.12,0.00043835,120]
[358117160,1744744262258,-1308.12,0.00043835,120]
[358117161,1744744262268,-1308.12,0.00043835,120]
[358117162,1744744262280,-1308.12,0.00043835,120]
[358117163,1744744262291,-1308.12,0.00043835,120]
[358117164,1744744262302,-1308.12,0.00043835,120]
[358117165,1744744262311,-1308.12,0.00043835,120]
[358117166,1744744262322,-1308.12,0.00043835,120]
[358117167,1744744262553,-1308.12,0.00043835,120]
[358117168,1744744262564,-1308.12,0.00043835,120]
[358117169,1744744262574,-1308.12,0.00043835,120]
[358117170,1744744262583,-1308.12,0.00043835,120]
[358117171,1744744262593,-1308.12,0.00043835,120]
[358117172,1744744262603,-1308.19,0.00043835,120]
[358117173,1744744262613,-727.41,0.00043835,120]
[358117174,1744744262623,-727.41,0.00043835,120]
[358117175,1744744262632,-727.41,0.00043835,120]
[358117176,1744744262642,-727.41,0.00043835,120]
[358117177,1744744262651,-727.41,0.00043835,120]
[358117178,1744744262661,-727.41,0.00043835,120]
[358117179,1744744262671,-727.41,0.00043835,120]
[358117180,1744744262681,-727.41,0.00043835,120]
[358117181,1744744262691,-727.41,0.00043835,120]
[358117182,1744744262701,-727.41,0.00043835,120]
[358117183,1744744262710,-727.41,0.00043835,120]
[358117184,1744744262720,-727.41,0.00043835,120]
[358117185,1744744262730,-727.41,0.00043835,120]
[358117186,1744744262740,-727.41,0.00043835,120]
[358117187,1744744262749,-727.41,0.00043835,120]
[358117188,1744744262759,-727.41,0.00043835,120]
[358117189,1744744262779,-727.41,0.00043835,120]
[358117190,1744744262790,-727.41,0.00043835,120]
[358117191,1744744262801,-727.41,0.00043835,120]
[358117192,1744744262812,-727.41,0.00043835,120]
[358117193,1744744262823,-727.41,0.00043835,120]
[358117194,1744744262833,-727.41,0.00043835,120]
[358117195,1744744262843,-727.41,0.00043835,120]
[358117196,1744744262854,-727.44790117,0.00043835,120]
[358117197,1744744262863,-1191.27,0.00043835,120]
[358117198,1744744262872,-1191.27,0.00043835,120]
[358117199,1744744262882,-1191.27,0.00043835,120]
[358117200,1744744262892,-1191.27,0.00043835,120]
[358117201,1744744262902,-1191.27,0.00043835,120]
[358117202,1744744262912,-1191.27,0.00043835,120]
[358117203,1744744262922,-1191.27,0.00043835,120]